fUST/lending_fUST_20250810
["ID","MTS","AMOUNT","RATE_DAILY","PERIOD"]
[378170652,1754761833375,-460.0,0.00021541,2]
[378170654,1754761833385,-461.64674416,0.00021541,2]
[378170656,1754761833397,-460.0,0.00021541,2]
[378170658,1754761833407,-460.0,0.00021541,2]
[378170660,1754761833416,-460.0,0.00021541,2]
[378170662,1754761833426,-460.0,0.00021541,2]
[378170664,1754761833436,-460.0,0.00021541,2]
[378170665,1754761833446,-174.37212101,0.00021541,2]
[378170667,1754761833455,-460.0,0.00021541,2]
[378170669,1754761833464,-460.0,0.00021541,2]
[378170671,1754761833475,-460.0,0.00021541,2]
[378170673,1754761833485,-460.0,0.00021541,2]
[378170675,1754761833494,-1185.14,0.00021541,2]
[378170677,1754761833504,-460.0,0.00021541,2]
[378170679,1754761833513,-50000.0,0.00021541,2]
[378170681,1754761833523,-500.0,0.00021542,2]
[378170683,1754761833532,-460.0,0.00021542,2]
[378170685,1754761833542,-41.95501108,0.00021542,2]
[378170695,1754761835966,2751.86121867,0.00021512,2]
[378170696,1754761835989,2248.13878133,0.00021512,2]
[378170708,1754761837814,-460.0,0.0002154,2]
[378170710,1754761837824,-144.90997089,0.00021541,2]
[378170712,1754761837838,-315.09002911,0.00021541,2]
[378170714,1754761837848,-121.72028368,0.00021542,2]
[378170717,1754761837868,-296.32470524,0.00021542,2]
[378170719,1754761837879,-460.0,0.00021542,2]
[378170721,1754761837889,-266.92148989,0.00021542,2]
[378170723,1754761837898,-460.0,0.00021542,2]
[378170725,1754761837908,-460.0,0.00021542,2]
[378170727,1754761837918,-461.72507265,0.00021542,2]
[378170729,1754761837928,-460.0,0.00021542,2]
[378170731,1754761837940,-460.0,0.00021542,2]
[378170733,1754761837950,-460.0,0.00021542,2]
[378170735,1754761837960,-460.0,0.00021542,2]
[378170737,1754761837970,-460.0,0.00021542,2]
[378170739,1754761837980,-500.0,0.00021542,2]
[378170741,1754761837989,-521.57744229,0.00021542,2]
[378170742,1754761837999,-173.40339114,0.00021542,2]
[378170745,1754761838011,-286.59660886,0.00021542,2]
[378170747,1754761838021,-460.0,0.00021542,2]
[378170749,1754761838031,-310.40339114,0.00021542,2]
[378170751,1754761838047,-149.59660886,0.00021542,2]
[378170753,1754761838057,-549.89591631,0.00021542,2]
[378170756,1754761838067,-460.0,0.00021542,2]
[378170759,1754761838076,-460.0,0.00021542,2]
[378170762,1754761838086,-461.60850003,0.00021542,2]
[378170765,1754761838095,-460.0,0.00021542,2]
[378170768,1754761838105,-460.0,0.00021542,2]
[378170771,1754761838114,-460.0,0.00021542,2]
[378170773,1754761838124,-460.0,0.00021542,2]
[378170775,1754761838133,-460.0,0.00021542,2]
[378170777,1754761838142,-640.24,0.00021542,2]
[378170779,1754761838151,-460.0,0.00021542,2]
[378170781,1754761838160,-460.0,0.00021542,2]
[378170783,1754761838170,-460.0,0.00021542,2]
[378170785,1754761838179,-569.40625082,0.00021542,2]
[378170787,1754761838188,-1367.91,0.00021542,2]
[378170789,1754761838197,-460.0,0.00021542,2]
[378170791,1754761838207,-460.0,0.00021542,2]
[378170793,1754761838217,-460.0,0.00021542,2]
[378170795,1754761838226,-2997.18,0.00021542,2]
[378170797,1754761838236,-1383.99,0.00021542,2]
[378170799,1754761838245,-460.0,0.00021542,2]
[378170801,1754761838254,-581.58,0.00021542,2]
[378170803,1754761838263,-460.0,0.00021542,2]
[378170805,1754761838273,-460.0,0.00021542,2]
[378170807,1754761838282,-779.99,0.00021542,2]
[378170809,1754761838291,-460.0,0.00021542,2]
[378170811,1754761838300,-460.0,0.00021542,2]
[378170812,1754761838310,-460.0,0.00021542,2]
[378170814,1754761838322,-462.55512443,0.00021542,2]
[378170815,1754761838331,-460.0,0.00021542,2]
[378170816,1754761838342,-460.0,0.00021542,2]
[378170817,1754761838351,-460.0,0.00021542,2]
[378170818,1754761838361,-485.28,0.00021542,2]
[378170819,1754761838372,-460.0,0.00021542,2]
[378170820,1754761838390,-460.0,0.00021542,2]
[378170821,1754761838409,-537.12,0.00021542,2]
[378170822,1754761838428,-854.29,0.00021542,2]
[378170823,1754761838437,-460.0,0.00021542,2]
[378170824,1754761838446,-460.0,0.00021542,2]
[378170825,1754761838455,-460.0,0.00021542,2]
[378170826,1754761838465,-460.0,0.00021542,2]
[378170827,1754761838474,-833.25,0.00021542,2]
[378170828,1754761838484,-460.0,0.00021542,2]
[378170829,1754761838493,-460.0,0.00021542,2]
[378170830,1754761838503,-460.94224965,0.00021542,2]
[378170831,1754761838512,-460.0,0.00021542,2]
[378170832,1754761838522,-460.0,0.00021542,2]
[378170833,1754761838531,-460.0,0.00021542,2]
[378170834,1754761838541,-460.0,0.00021542,2]
[378170835,1754761838551,-460.0,0.00021542,2]
[378170836,1754761838560,-460.0,0.00021542,2]
[378170837,1754761838570,-460.0,0.00021542,2]
[378170838,1754761838579,-460.0,0.00021542,2]
[378170839,1754761838589,-460.0,0.00021542,2]
[378170840,1754761838598,-460.0,0.00021542,2]
[378170841,1754761838608,-460.0,0.00021542,2]
[378170842,1754761838617,-460.0,0.00021542,2]
[378170843,1754761838626,-504.93,0.00021542,2]
[378170844,1754761838635,-460.0,0.00021542,2]
[378170845,1754761838645,-460.0,0.00021542,2]
[378170846,1754761838654,-460.0,0.00021542,2]
[378170847,1754761838663,-535.7775698,0.00021542,2]
[378170848,1754761838672,-1004.92,0.00021542,2]
[378170849,1754761838681,-505.72,0.00021542,2]
[378170850,1754761838691,-460.0,0.00021542,2]
[378170851,1754761838701,-460.0,0.00021543,2]
[378170852,1754761838710,-460.0,0.00021543,2]
[378170853,1754761838720,-460.0,0.00021543,2]
[378170854,1754761838729,-460.0,0.00021543,2]
[378170855,1754761838738,-460.0,0.00021543,2]
[378170856,1754761838747,-466.26245428,0.00021543,2]
[378170857,1754761838757,-460.0,0.00021543,2]
[378170858,1754761838767,-500.0,0.00021543,2]
[378170859,1754761838776,-460.2873812,0.00021543,2]
[378170860,1754761838785,-460.0,0.00021543,2]
[378170861,1754761838794,-460.0,0.00021543,2]
[378170862,1754761838803,-460.0,0.00021543,2]
[378170863,1754761838813,-498.67,0.00021543,2]
[378170864,1754761838823,-460.70187345,0.00021543,2]
[378170865,1754761838832,-460.0,0.00021543,2]
[378170866,1754761838841,-460.0,0.00021543,2]
[378170867,1754761838850,-460.0,0.00021543,2]
[378170868,1754761838859,-517.09950698,0.00021543,2]
[378170869,1754761838869,-460.0,0.00021543,2]
[378170870,1754761838878,-460.0,0.00021543,2]
[378170871,1754761838888,-460.0,0.00021543,2]
[378170872,1754761838897,-465.9192075,0.00021543,2]
[378170873,1754761838907,-460.0,0.00021543,2]
[378170874,1754761838916,-460.0,0.00021543,2]
[378170875,1754761838926,-460.0,0.00021543,2]
[378170876,1754761838935,-460.0,0.00021543,2]
[378170877,1754761838944,-460.0,0.00021543,2]
[378170878,1754761838954,-461.90936459,0.00021543,2]
[378170879,1754761838963,-460.0,0.00021543,2]
[378170880,1754761838973,-460.0,0.00021543,2]
[378170881,1754761838982,-460.0,0.00021543,2]
[378170882,1754761838991,-460.0,0.00021543,2]
[378170883,1754761839000,-512.24979203,0.00021543,2]
[378170884,1754761839010,-460.0,0.00021543,2]
[378170885,1754761839019,-460.0,0.00021543,2]
[378170886,1754761839029,-460.0,0.00021543,2]
[378170887,1754761839040,-460.0,0.00021543,2]
[378170888,1754761839049,-460.0,0.00021543,2]
[378170889,1754761839059,-460.0,0.00021543,2]
[378170890,1754761839068,-209.27284313,0.00021543,2]
[378170891,1754761839077,-460.0,0.00021543,2]
[378170892,1754761839087,-460.0,0.00021543,2]
[378170893,1754761839286,-460.0,0.00021543,2]
[378170894,1754761839303,-460.0,0.00021543,2]
[378170895,1754761839314,-460.0,0.00021543,2]
[378170896,1754761839324,-462.39917215,0.00021543,2]
[378170897,1754761839334,-460.0,0.00021543,2]
[378170898,1754761839344,-460.0,0.00021543,2]
[378170899,1754761839353,-460.0,0.00021543,2]
[378170900,1754761839363,-460.0,0.00021543,2]
[378170901,1754761839372,-460.0,0.00021543,2]
[378170902,1754761839382,-460.0,0.00021543,2]
[378170903,1754761839391,-460.0,0.00021543,2]
[378170904,1754761839403,-460.0,0.00021543,2]
[378170905,1754761839413,-460.0,0.00021543,2]
[378170906,1754761839423,-460.0,0.00021543,2]
[378170907,1754761839432,-460.0,0.00021543,2]
[378170908,1754761839443,-460.0,0.00021543,2]
[378170909,1754761839453,-460.0,0.00021543,2]
[378170910,1754761839462,-562.18557332,0.00021543,2]
[378170911,1754761839473,-460.0,0.00021543,2]
[378170912,1754761839482,-460.0,0.00021543,2]
[378170913,1754761839492,-460.0,0.00021543,2]
[378170914,1754761839501,-460.0,0.00021543,2]
[378170915,1754761839510,-460.0,0.00021543,2]
[378170916,1754761839520,-460.0,0.00021543,2]
[378170917,1754761839529,-460.0,0.00021543,2]
[378170918,1754761839539,-460.0,0.00021543,2]
[378170919,1754761839548,-1003.21411336,0.00021543,2]
[378170920,1754761839558,-327.29115212,0.00021543,2]
[378170921,1754761839567,-606.22542611,0.00021543,2]
[378170922,1754761839576,-460.0,0.00021543,2]
[378170923,1754761839587,-460.0,0.00021543,2]
[378170924,1754761839597,-460.0,0.00021543,2]
[378170925,1754761839607,-460.0,0.00021543,2]
[378170926,1754761839617,-460.0,0.00021543,2]
[378170927,1754761839626,-460.0,0.00021543,2]
[378170928,1754761839641,-460.0,0.00021543,2]
[378170929,1754761839650,-460.0,0.00021543,2]
[378170930,1754761839660,-513.3,0.00021543,2]
[378170931,1754761839669,-581.8240365,0.00021543,2]
[378170932,1754761839679,-460.0,0.00021543,2]
[378170933,1754761839688,-460.0,0.00021543,2]
[378170934,1754761839697,-500.0,0.00021543,2]
[378170935,1754761839707,-460.0,0.00021543,2]
[378170936,1754761839717,-460.0,0.00021543,2]
[378170937,1754761839727,-460.0,0.00021543,2]
[378170938,1754761839736,-460.0,0.00021543,2]
[378170939,1754761839746,-460.0,0.00021543,2]
[378170940,1754761839756,-460.0,0.00021543,2]
[378170941,1754761839768,-460.0,0.00021543,2]
[378170942,1754761839777,-460.0,0.00021543,2]
[378170943,1754761839787,-497.56,0.00021543,2]
[378170944,1754761839796,-460.0,0.00021543,2]
[378170945,1754761839805,-460.0,0.00021543,2]
[378170947,1754761839815,-460.0,0.00021543,2]
[378170948,1754761839825,-460.0,0.00021543,2]
[378170949,1754761839834,-460.0,0.00021543,2]
[378170950,1754761839844,-460.0,0.00021543,2]
[378170951,1754761839853,-460.0,0.00021543,2]
[378170952,1754761839863,-460.0,0.00021543,2]
[378170954,1754761839872,-460.0,0.00021543,2]
[378170956,1754761839882,-460.0,0.00021543,2]
[378170958,1754761839892,-460.0,0.00021543,2]
[378170959,1754761839901,-463.83297851,0.00021543,2]
[378170960,1754761839911,-460.0,0.00021543,2]
[378170962,1754761839920,-460.0,0.00021543,2]
[378170963,1754761839930,-460.0,0.00021543,2]
[378170964,1754761839939,-460.0,0.00021543,2]
[378170965,1754761839948,-500.0,0.00021543,2]
[378170966,1754761839957,-460.0,0.00021543,2]
[378170967,1754761839967,-460.0,0.00021543,2]
[378170968,1754761839977,-460.0,0.00021543,2]
[378170969,1754761839986,-460.0,0.00021543,2]
[378170970,1754761839996,-460.0,0.00021543,2]
[378170971,1754761840006,-460.0,0.00021543,2]
[378170972,1754761840016,-460.0,0.00021543,2]
[378170973,1754761840025,-460.0,0.00021543,2]
[378170974,1754761840035,-460.0,0.00021543,2]
[378170975,1754761840044,-460.0,0.00021543,2]
[378170977,1754761840053,-460.0,0.00021543,2]
[378170979,1754761840063,-460.0,0.00021543,2]
[378170981,1754761840072,-460.0,0.00021543,2]
[378170983,1754761840081,-460.0,0.00021543,2]
[378170985,1754761840090,-925.89,0.00021543,2]
[378170987,1754761840099,-460.0,0.00021543,2]
[378170989,1754761840109,-460.0,0.00021543,2]
[378170991,1754761840118,-460.0,0.00021543,2]
[378170993,1754761840128,-460.0,0.00021543,2]
[378170995,1754761840137,-1036.74,0.00021543,2]
[378170997,1754761840146,-460.0,0.00021543,2]
[378170999,1754761840156,-460.0,0.00021543,2]
[378171001,1754761840165,-460.0,0.00021543,2]
[378171003,1754761840174,-462.67758943,0.00021543,2]
[378171005,1754761840184,-460.0,0.00021543,2]
[378171007,1754761840193,-460.0,0.00021543,2]
[378171009,1754761840203,-460.0,0.00021543,2]
[378171011,1754761840212,-462.1903293,0.00021543,2]
[378171013,1754761840221,-1126.49,0.00021543,2]
[378171015,1754761840231,-460.0,0.00021543,2]
[378171018,1754761840240,-460.0,0.00021543,2]
[378171020,1754761840249,-460.0,0.00021543,2]
[378171022,1754761840258,-460.0,0.00021543,2]
[378171024,1754761840267,-460.0,0.00021543,2]
[378171028,1754761840277,-460.0,0.00021543,2]
[378171030,1754761840287,-460.0,0.00021543,2]
[378171032,1754761840297,-463.31932666,0.00021543,2]
[378171034,1754761840307,-460.0,0.00021544,2]
[378171036,1754761840315,-460.0,0.00021544,2]
[378171038,1754761840325,-460.0,0.00021544,2]
[378171040,1754761840335,-460.0,0.00021544,2]
[378171042,1754761840344,-460.0,0.00021544,2]
[378171044,1754761840353,-527.04,0.00021544,2]
[378171046,1754761840362,-464.76215047,0.00021544,2]
[378171048,1754761840371,-460.0,0.00021544,2]
[378171049,1754761840380,-460.0,0.00021544,2]
[378171051,1754761840390,-460.0,0.00021544,2]
[378171054,1754761840403,-500.0,0.00021544,2]
[378171056,1754761840412,-500.0,0.00021544,2]
[378171058,1754761840421,-500.0,0.00021544,2]
[378171060,1754761840431,-460.0,0.00021544,2]
[378171062,1754761840440,-460.65878156,0.00021545,2]
[378171064,1754761840450,-460.0,0.00021545,2]
[378171066,1754761840459,-460.0,0.00021545,2]
[378171068,1754761840468,-460.0,0.00021545,2]
[378171069,1754761840480,-460.0,0.00021545,2]
[378171071,1754761840490,-460.0,0.00021545,2]
[378171074,1754761840499,-523.13906533,0.00021545,2]
[378171075,1754761840508,-579.5,0.00021545,2]
[378171078,1754761840517,-500.0,0.00021545,2]
[378171080,1754761840527,-500.0,0.00021546,2]
[378171081,1754761840536,-500.0,0.00021546,2]
[378171083,1754761840546,-12736.80720581,0.00021655,2]
[378171086,1754761840555,-10077.14856448,0.00021717,2]
[378171088,1754761840565,-500.0,0.00021809,2]
[378171090,1754761840576,-460.0,0.00021814,2]
[378171092,1754761840586,-460.0,0.00021814,2]
[378171094,1754761840596,-722.59,0.00021814,2]
[378171096,1754761840605,-460.0,0.00021815,2]
[378171098,1754761840616,-460.0,0.00021815,2]
[378171100,1754761840625,-460.0,0.00021815,2]
[378171102,1754761840634,-469.02855954,0.00021815,2]
[378171104,1754761840643,-460.0,0.00021815,2]
[378171106,1754761840652,-1775.64,0.00021815,2]
[378171108,1754761840662,-460.0,0.00021815,2]
[378171110,1754761840671,-460.0,0.00021815,2]
[378171112,1754761840680,-460.0,0.00021815,2]
[378171114,1754761840689,-473.74,0.00021815,2]
[378171116,1754761840698,-254.16228084,0.00021815,2]
[378171118,1754761840707,-460.0,0.00021815,2]
[378171120,1754761840717,-1270.66,0.00021815,2]
[378171121,1754761840726,-460.0,0.00021815,2]
[378171122,1754761840735,-460.0,0.00021815,2]
[378171123,1754761840744,-460.0,0.00021815,2]
[378171124,1754761840754,-460.0,0.00021815,2]
[378171125,1754761840763,-460.0,0.00021815,2]
[378171126,1754761840772,-464.13377597,0.00021815,2]
[378171127,1754761840782,-462.15247881,0.00021815,2]
[378171128,1754761840791,-460.0,0.00021815,2]
[378171129,1754761840801,-465.09773716,0.00021815,2]
[378171130,1754761840810,-1185.14,0.00021815,2]
[378171131,1754761840820,-205.331672,0.00021815,2]
[378171132,1754761840829,-500.0,0.00021815,2]
[378171133,1754761840840,-500.0,0.00021815,2]
[378171134,1754761840850,-500.0,0.00021815,2]
[378171135,1754761840860,-500.0,0.00021815,2]
[378171136,1754761840870,-500.0,0.00021815,2]
[378171137,1754761840879,-248.36758866,0.00021815,2]
[378171138,1754761840889,-500.0,0.00021816,2]
[378171139,1754761840898,-460.0,0.00021816,2]
[378171140,1754761840908,-460.0,0.00021816,2]
[378171141,1754761840918,-460.0,0.00021816,2]
[378171142,1754761840927,-460.0,0.00021816,2]
[378171143,1754761840937,-460.0,0.00021816,2]
[378171144,1754761840946,-460.0,0.00021816,2]
[378171145,1754761840955,-460.0,0.00021816,2]
[378171146,1754761840965,-460.0,0.00021816,2]
[378171147,1754761840974,-460.0,0.00021816,2]
[378171148,1754761840984,-640.24,0.00021816,2]
[378171149,1754761840993,-460.0,0.00021816,2]
[378171150,1754761841003,-1367.91,0.00021816,2]
[378171151,1754761841012,-460.0,0.00021816,2]
[378171152,1754761841021,-460.0,0.00021816,2]
[378171153,1754761841030,-2997.18,0.00021816,2]
[378171154,1754761841040,-1383.99,0.00021816,2]
[378171155,1754761841049,-460.0,0.00021816,2]
[378171156,1754761841058,-581.58,0.00021816,2]
[378171157,1754761841067,-460.0,0.00021816,2]
[378171158,1754761841077,-779.99,0.00021816,2]
[378171159,1754761841086,-460.0,0.00021816,2]
[378171160,1754761841095,-460.0,0.00021816,2]
[378171161,1754761841103,-460.0,0.00021816,2]
[378171162,1754761841114,-460.0,0.00021816,2]
[378171163,1754761841124,-485.28,0.00021816,2]
[378171164,1754761841133,-460.0,0.00021816,2]
[378171165,1754761841142,-460.0,0.00021816,2]
[378171166,1754761841151,-537.12,0.00021816,2]
[378171167,1754761841160,-854.29,0.00021816,2]
[378171168,1754761841170,-460.0,0.00021816,2]
[378171169,1754761841179,-460.0,0.00021816,2]
[378171170,1754761841188,-460.0,0.00021816,2]
[378171171,1754761841197,-833.25,0.00021816,2]
[378171172,1754761841207,-460.0,0.00021816,2]
[378171173,1754761841216,-460.0,0.00021816,2]
[378171174,1754761841225,-460.0,0.00021816,2]
[378171175,1754761841234,-460.0,0.00021816,2]
[378171176,1754761841243,-460.0,0.00021816,2]
[378171177,1754761841252,-460.0,0.00021816,2]
[378171178,1754761841262,-460.0,0.00021816,2]
[378171179,1754761841271,-460.0,0.00021816,2]
[378171180,1754761841280,-465.87,0.00021816,2]
[378171181,1754761841289,-460.0,0.00021816,2]
[378171182,1754761841298,-460.0,0.00021816,2]
[378171183,1754761841307,-460.0,0.00021816,2]
[378171184,1754761841316,-504.93,0.00021816,2]
[378171185,1754761841327,-460.0,0.00021816,2]
[378171186,1754761841336,-1004.92,0.00021816,2]
[378171187,1754761841345,-505.72,0.00021816,2]
[378171188,1754761841354,-460.0,0.00021816,2]
[378171189,1754761841363,-460.0,0.00021817,2]
[378171190,1754761841372,-460.0,0.00021817,2]
[378171191,1754761841382,-498.67,0.00021817,2]
[378171192,1754761841391,-460.0,0.00021817,2]
[378171193,1754761841401,-460.0,0.00021817,2]
[378171194,1754761841410,-460.0,0.00021817,2]
[378171195,1754761841419,-460.0,0.00021817,2]
[378171196,1754761841429,-460.0,0.00021817,2]
[378171197,1754761841439,-460.0,0.00021817,2]
[378171198,1754761841449,-460.0,0.00021817,2]
[378171199,1754761841458,-460.0,0.00021817,2]
[378171200,1754761841467,-464.69415242,0.00021817,2]
[378171201,1754761841478,-487.69625516,0.00021817,2]
[378171202,1754761841488,-460.0,0.00021817,2]
[378171203,1754761841497,-461.25198803,0.00021817,2]
[378171204,1754761841507,-460.0,0.00021817,2]
[378171205,1754761841517,-460.0,0.00021817,2]
[378171206,1754761841526,-460.0,0.00021817,2]
[378171207,1754761841537,-460.0,0.00021817,2]
[378171208,1754761841546,-460.0,0.00021817,2]
[378171209,1754761841555,-460.0,0.00021817,2]
[378171210,1754761841564,-460.0,0.00021817,2]
[378171211,1754761841574,-460.0,0.00021817,2]
[378171212,1754761841583,-460.0,0.00021817,2]
[378171213,1754761841593,-460.0,0.00021817,2]
[378171214,1754761841603,-460.0,0.00021817,2]
[378171215,1754761841612,-460.0,0.00021817,2]
[378171216,1754761841623,-513.3,0.00021817,2]
[378171217,1754761841633,-522.51399118,0.00021817,2]
[378171218,1754761841642,-460.0,0.00021817,2]
[378171219,1754761841653,-460.0,0.00021817,2]
[378171220,1754761841663,-462.56675746,0.00021817,2]
[378171221,1754761841672,-460.0,0.00021817,2]
[378171222,1754761841682,-460.0,0.00021817,2]
[378171223,1754761841691,-497.56,0.00021817,2]
[378171224,1754761841700,-460.0,0.00021817,2]
[378171225,1754761841710,-460.0,0.00021817,2]
[378171226,1754761841719,-460.0,0.00021817,2]
[378171227,1754761841728,-460.0,0.00021817,2]
[378171228,1754761841738,-460.0,0.00021817,2]
[378171229,1754761841747,-460.0,0.00021817,2]
[378171230,1754761841757,-460.0,0.00021817,2]
[378171231,1754761841766,-460.0,0.00021817,2]
[378171232,1754761841776,-204.14,0.00021817,2]
[378171233,1754761841785,-460.0,0.00021817,2]
[378171234,1754761841794,-460.0,0.00021817,2]
[378171235,1754761841803,-460.0,0.00021817,2]
[378171236,1754761841813,-460.0,0.00021817,2]
[378171237,1754761841822,-460.0,0.00021817,2]
[378171238,1754761841832,-460.0,0.00021817,2]
[378171239,1754761841841,-925.89,0.00021817,2]
[378171240,1754761841850,-460.0,0.00021817,2]
[378171241,1754761841859,-1036.74,0.00021817,2]
[378171242,1754761841868,-460.0,0.00021817,2]
[378171243,1754761841878,-460.0,0.00021817,2]
[378171244,1754761841887,-1126.49,0.00021817,2]
[378171245,1754761841897,-460.0,0.00021817,2]
[378171246,1754761841905,-460.0,0.00021817,2]
[378171247,1754761841915,-460.0,0.00021817,2]
[378171248,1754761841924,-460.0,0.00021817,2]
[378171249,1754761841933,-460.0,0.00021817,2]
[378171250,1754761841943,-460.0,0.00021818,2]
[378171251,1754761841952,-467.2410421,0.00021818,2]
[378171252,1754761841962,-460.0,0.00021819,2]
[378171253,1754761841972,-579.5,0.00021819,2]
[378171254,1754761841982,-240.15173798,0.00021873,2]
[378171255,1754761841991,-500.0,0.00021873,2]
[378171256,1754761842001,-500.0,0.00021873,2]
[378171257,1754761842010,-500.0,0.00021873,2]
[378171258,1754761842019,-500.0,0.00021873,2]
[378171259,1754761842029,-510.72260156,0.00021873,2]
[378171260,1754761842038,-507.22421426,0.00021873,2]
[378171261,1754761842047,-500.0,0.00021917,2]
[378171262,1754761842056,-200.0,0.00021971,15]
[378171263,1754761842066,-200.0,0.00021971,15]
[378171264,1754761842076,-200.0,0.00021971,15]
[378171265,1754761842085,-200.0,0.00021971,15]
[378171266,1754761842094,-200.0,0.00021971,15]
[378171267,1754761842103,-43926.18107245,0.0002199,2]
[378171268,1754761842123,-16968.19893255,0.0002199,2]
[378171269,1754761842131,-168.0,0.00022,2]
[378171270,1754761842140,-460.0,0.00022088,2]
[378171271,1754761842150,-722.59,0.00022088,2]
[378171272,1754761842159,-1775.64,0.00022089,2]
[378171273,1754761842167,-465.28869094,0.00022089,2]
[378171274,1754761842177,-460.0,0.00022089,2]
[378171275,1754761842186,-1270.66,0.00022089,2]
[378171276,1754761842195,-460.0,0.00022089,2]
[378171277,1754761842204,-460.0,0.00022089,2]
[378171278,1754761842213,-1185.14,0.00022089,2]
[378171279,1754761842222,-500.0,0.0002209,2]
[378171280,1754761842231,-460.0,0.0002209,2]
[378171281,1754761842241,-460.0,0.0002209,2]
[378171282,1754761842250,-460.0,0.0002209,2]
[378171283,1754761842259,-460.0,0.0002209,2]
[378171284,1754761842269,-460.0,0.0002209,2]
[378171285,1754761842278,-460.0,0.0002209,2]
[378171286,1754761842288,-640.24,0.0002209,2]
[378171287,1754761842297,-1367.91,0.0002209,2]
[378171288,1754761842306,-460.0,0.0002209,2]
[378171289,1754761842316,-460.0,0.0002209,2]
[378171290,1754761842325,-2997.18,0.0002209,2]
[378171291,1754761842335,-1383.99,0.0002209,2]
[378171292,1754761842344,-460.0,0.0002209,2]
[378171293,1754761842353,-581.58,0.0002209,2]
[378171294,1754761842363,-460.0,0.0002209,2]
[378171295,1754761842372,-779.99,0.0002209,2]
[378171296,1754761842381,-460.0,0.0002209,2]
[378171297,1754761842390,-460.0,0.0002209,2]
[378171298,1754761842403,-460.0,0.0002209,2]
[378171299,1754761842412,-460.0,0.0002209,2]
[378171300,1754761842422,-485.28,0.0002209,2]
[378171302,1754761842431,-460.0,0.0002209,2]
[378171304,1754761842442,-460.0,0.0002209,2]
[378171306,1754761842451,-537.12,0.0002209,2]
[378171309,1754761842461,-854.29,0.0002209,2]
[378171311,1754761842471,-460.0,0.0002209,2]
[378171313,1754761842482,-460.0,0.0002209,2]
[378171314,1754761842492,-833.25,0.0002209,2]
[378171316,1754761842501,-460.0,0.0002209,2]
[378171318,1754761842511,-460.0,0.0002209,2]
[378171320,1754761842520,-399.67858357,0.0002209,2]
[378171322,1754761842529,-460.0,0.0002209,2]
[378171324,1754761842539,-460.0,0.0002209,2]
[378171325,1754761842548,-460.0,0.0002209,2]
[378171326,1754761842690,-460.0,0.0002209,2]
[378171327,1754761842700,-460.0,0.0002209,2]
[378171328,1754761842709,-460.0,0.0002209,2]
[378171329,1754761842718,-460.0,0.0002209,2]
[378171330,1754761842727,-460.0,0.0002209,2]
[378171331,1754761842736,-460.0,0.0002209,2]
[378171332,1754761842746,-504.93,0.0002209,2]
[378171333,1754761842755,-1004.92,0.0002209,2]
[378171334,1754761842764,-505.72,0.0002209,2]